bitfinex/quotes_BTCUSD_20240717
["timestamp","ask_amount","ask_price","bid_price","bid_amount"]
[1721185744270,2.59729749,65685.0,65684.0,0.00283732]
[1721185744466,2.59730867,65685.0,65684.0,0.00283732]
[1721185745071,2.50662824,65685.0,65684.0,0.00283732]
[1721185746000,2.58862673,65685.0,65684.0,0.00283732]
[1721185746200,2.3476053,65685.0,65684.0,0.00283732]
[1721185746411,2.2406223,65685.0,65684.0,0.00283732]
[1721185746621,1.82396122,65685.0,65684.0,0.00283732]
[1721185747199,1.96696122,65685.0,65684.0,0.00283732]
[1721185747358,2.00296122,65685.0,65684.0,0.00283732]
[1721185747552,2.00293198,65685.0,65684.0,0.00283732]
[1721185747759,2.02593198,65685.0,65684.0,0.00283732]
[1721185748012,1.97593198,65685.0,65684.0,0.00283732]
[1721185748356,1.98993198,65685.0,65684.0,0.00283732]
[1721185748560,2.14428155,65685.0,65684.0,0.00283732]
[1721185748986,2.15828155,65685.0,65684.0,0.00283732]
[1721185749412,2.14428155,65685.0,65684.0,0.00283732]
[1721185749620,2.13028155,65685.0,65684.0,0.00283732]
[1721185749821,2.49876455,65685.0,65684.0,0.00283732]
[1721185750024,2.51276455,65685.0,65684.0,0.00283732]
[1721185750231,2.8318751,65685.0,65684.0,3.2e-07]
[1721185750444,2.67752553,65685.0,65684.0,3.2e-07]
[1721185750645,2.72032606,65685.0,65684.0,3.2e-07]
[1721185750960,2.70881491,65685.0,65684.0,3.2e-07]
[1721185751158,2.66350444,65685.0,65684.0,3.2e-07]
[1721185751371,2.72281491,65685.0,65684.0,3.2e-07]
[1721185751601,2.70881491,65685.0,65684.0,3.2e-07]
[1721185751808,2.66350444,65685.0,65684.0,3.2e-07]
[1721185752018,2.88583178,65685.0,65684.0,3.2e-07]
[1721185752229,2.88583178,65685.0,65681.0,3.2e-07]
[1721185752230,2.18943,65682.0,65681.0,3.2e-07]
[1721185752436,0.456919,65657.0,65656.0,0.0606]
[1721185752645,1.24568289,65657.0,65656.0,0.0606]
[1721185753555,1.22052674,65657.0,65656.0,0.0606]
[1721185753795,1.24561384,65657.0,65656.0,0.0606]
[1721185753972,1.25961384,65657.0,65656.0,0.0606]
[1721185754766,0.152334,65645.0,65644.0,0.0606]
[1721185754939,0.30671574,65645.0,65644.0,0.18710216]
[1721185755363,0.30671574,65645.0,65644.0,0.0606]
[1721185755364,0.91605374,65645.0,65644.0,0.0606]
[1721185755573,1.24573228,65645.0,65644.0,0.0606]
[1721185755998,1.066404,65641.0,65634.0,0.0606]
[1721185756214,0.63642128,65641.0,65634.0,0.0606]
[1721185756472,0.93960757,65641.0,65640.0,0.137401]
[1721185757341,1.24429457,65641.0,65640.0,0.000501]
[1721185757704,0.63492057,65641.0,65640.0,0.000501]
[1721185758307,0.17942341,65641.0,65640.0,0.000501]
[1721185758494,0.15438174,65641.0,65640.0,0.26642152]
[1721185758692,0.32072474,65641.0,65640.0,0.26642152]
[1721185759310,0.18238174,65641.0,65640.0,0.41876752]
[1721185759927,0.041,65641.0,65640.0,0.72344738]
[1721185760126,0.041,65641.0,65640.0,1.02813938]
[1721185760950,0.041,65641.0,65640.0,1.33283138]
[1721185761153,0.04909145,65658.0,65652.0,0.152316]
[1721185761356,0.04909145,65658.0,65653.0,0.26590838]
[1721185761357,0.61743045,65657.0,65653.0,0.26590838]
[1721185761745,0.15438174,65657.0,65654.0,0.12650838]
[1721185761918,0.15438174,65657.0,65655.0,0.12650838]
[1721185762123,0.61130074,65657.0,65656.0,0.12650838]
[1721185762339,1.46609273,65657.0,65656.0,0.12650838]
[1721185762500,0.456982,65648.0,65647.0,0.0626]
[1721185762701,0.61136374,65648.0,65647.0,0.1890976]
[1721185762907,0.91601874,65648.0,65647.0,0.0626]
[1721185763106,1.24575498,65648.0,65647.0,0.12650307]
[1721185763309,1.61600998,65648.0,65647.0,0.12650307]
[1721185763473,1.63900998,65648.0,65647.0,0.12650307]
[1721185764112,1.64800998,65648.0,65647.0,0.12650307]
[1721185764604,1.80850998,65648.0,65647.0,0.12650307]
[1721185765346,0.761717,65641.0,65640.0,0.000501]
[1721185765552,0.63649298,65641.0,65640.0,0.12702595]
[1721185766114,0.63640995,65641.0,65640.0,0.1270232]
[1721185766669,0.94909695,65641.0,65640.0,0.1270232]
[1721185766953,0.64440995,65641.0,65640.0,0.1270232]
[1721185767526,0.33972295,65641.0,65640.0,0.1270232]
[1721185767704,0.16238174,65641.0,65640.0,0.2691232]
[1721185769196,0.16238174,65641.0,65640.0,0.142601]
[1721185769401,0.16238174,65641.0,65640.0,0.26911542]
[1721185771069,0.31472474,65641.0,65640.0,0.26911542]
[1721185771269,0.33962251,65641.0,65640.0,0.26911542]
[1721185772429,0.64430961,65641.0,65640.0,0.26911846]
[1721185773884,0.16238174,65641.0,65640.0,0.26911846]
[1721185774128,0.33961642,65641.0,65640.0,0.26911846]
[1721185775618,0.18726247,65641.0,65640.0,0.142601]
[1721185775790,0.18726247,65641.0,65640.0,0.42146143]
[1721185775791,0.008,65641.0,65640.0,0.42146143]
[1721185775990,0.008,65641.0,65640.0,1.52530636]
[1721185776191,0.008,65641.0,65640.0,1.57530636]
[1721185776332,0.008,65641.0,65640.0,1.22061436]
[1721185776933,0.152319,65652.0,65646.0,0.152332]
[1721185777152,0.17915861,65651.0,65647.0,0.27441443]
[1721185777371,0.02477687,65650.0,65648.0,0.12651443]
[1721185777575,0.02477687,65650.0,65647.0,0.1479]
[1721185777576,0.15438174,65649.0,65647.0,0.1479]
[1721185777778,0.15438174,65649.0,65648.0,0.12649869]
[1721185777955,0.17918183,65649.0,65648.0,0.12649869]
[1721185778380,0.15438174,65649.0,65648.0,0.48686879]
[1721185778556,0.15438174,65649.0,65648.0,0.27882569]
[1721185778755,0.15438174,65649.0,65648.0,0.27882146]
[1721185778998,0.15438174,65649.0,65648.0,0.46856276]
[1721185779296,0.15438174,65649.0,65648.0,0.56866282]
[1721185779544,0.04991644,65661.0,65652.0,0.0818]
[1721185779821,0.15438174,65657.0,65656.0,0.92734506]
[1721185779994,0.15438174,65660.0,65658.0,0.152303]
[1721185780159,0.15438174,65660.0,65659.0,0.12649446]
[1721185780362,0.1791482,65660.0,65659.0,0.12649446]
[1721185780761,0.02476646,65660.0,65659.0,0.64940046]
[1721185780972,0.304557,65670.0,65661.0,0.152297]
[1721185780973,0.152283,65667.0,65661.0,0.152297]
[1721185781168,0.17918779,65666.0,65662.0,0.12649446]
[1721185781373,0.17918779,65666.0,65663.0,0.12649446]
[1721185781374,0.02480605,65665.0,65663.0,0.12649446]
[1721185781619,0.15438174,65664.0,65660.0,0.152299]
[1721185781822,0.02481057,65663.0,65661.0,0.12647687]
[1721185782065,0.15438174,65662.0,65661.0,0.456891]
[1721185782211,0.17919231,65662.0,65661.0,0.66656231]
[1721185782590,0.17919231,65662.0,65661.0,0.36196831]
[1721185783754,0.18019231,65662.0,65661.0,0.36396831]
[1721185784155,0.15538174,65662.0,65661.0,0.36396831]
[1721185784368,0.18024524,65662.0,65661.0,0.36396831]
[1721185784575,0.15538174,65662.0,65661.0,0.36396831]
[1721185784866,0.15538174,65662.0,65661.0,0.237497]
[1721185785063,0.15538174,65662.0,65661.0,0.36396434]
[1721185785409,0.15538174,65662.0,65661.0,0.66656136]
[1721185785410,0.001,65662.0,65661.0,0.66656136]
[1721185785606,0.001,65662.0,65661.0,1.03475536]
[1721185785811,0.152267,65674.0,65668.0,0.1456]
[1721185786011,0.17925288,65672.0,65669.0,0.12646092]
[1721185786213,0.02487114,65671.0,65670.0,0.12645907]
[1721185786452,0.02487114,65671.0,65670.0,0.12645847]
[1721185786453,0.17925366,65671.0,65670.0,0.12645847]
[1721185786652,0.17925366,65671.0,65668.0,0.1456]
[1721185786853,0.17925366,65670.0,65668.0,0.1456]
[1721185787076,0.02487192,65669.0,65668.0,0.1456]
[1721185787276,0.17925366,65669.0,65668.0,0.27206024]
[1721185787483,0.17925366,65669.0,65668.0,0.1456]
[1721185787683,0.304568,65667.0,65658.0,0.1456]
[1721185787892,0.152288,65665.0,65659.0,0.12646173]
[1721185788132,0.17915806,65664.0,65659.0,0.152302]
[1721185788308,0.02477526,65663.0,65660.0,0.12646812]
[1721185788522,0.15438174,65662.0,65658.0,0.1456]
[1721185788724,0.152313,65654.0,65653.0,0.082]
[1721185788879,0.152313,65654.0,65653.0,0.20847679]
[1721185788880,0.30669474,65654.0,65653.0,0.20847679]
[1721185789941,0.61132174,65654.0,65653.0,0.20847679]
[1721185790083,0.61132174,65654.0,65653.0,0.21147679]
[1721185790506,0.61132174,65654.0,65653.0,0.085]
[1721185790764,0.61132174,65654.0,65653.0,0.003]
[1721185790765,0.9406853,65654.0,65653.0,0.003]
[1721185791175,0.6360583,65654.0,65653.0,0.003]
[1721185791347,0.63606128,65654.0,65653.0,0.003]
[1721185792290,0.152321,65651.0,65649.0,0.082]
[1721185792490,0.15438174,65650.0,65649.0,0.082]
[1721185792652,0.33135172,65650.0,65649.0,0.082]
[1721185793662,0.33735172,65650.0,65649.0,0.082]
[1721185794265,0.18502972,65650.0,65646.0,0.0636]
[1721185794474,0.152328,65648.0,65646.0,0.0636]
[1721185794672,0.30671074,65647.0,65646.0,0.0636]
[1721185794874,0.30671074,65647.0,65641.0,0.00277097]
[1721185794875,0.152333,65646.0,65641.0,0.00277097]
[1721185795075,0.152337,65644.0,65642.0,0.12650033]
[1721185795275,0.15438174,65644.0,65640.0,0.542101]
[1721185795500,0.15438174,65644.0,65641.0,0.12927464]
[1721185795700,0.15438174,65644.0,65642.0,0.12650367]
[1721185796020,0.15438174,65644.0,65640.0,0.694446]
[1721185796189,0.15438174,65644.0,65641.0,0.12927489]
[1721185796384,0.15438174,65644.0,65642.0,0.12650392]
[1721185796585,0.15438174,65644.0,65641.0,0.00277097]
[1721185796898,0.91607674,65643.0,65642.0,0.12650393]
[1721185797102,0.152341,65642.0,65640.0,0.542101]
[1721185797286,0.15438174,65641.0,65640.0,0.542101]
[1721185797482,0.15438174,65641.0,65640.0,0.6686071]
[1721185798399,0.30672474,65641.0,65640.0,0.6686071]
[1721185798801,0.15438174,65641.0,65640.0,0.6696071]
[1721185799844,0.002,65644.0,65641.0,0.00277097]
[1721185800046,0.15438174,65643.0,65642.0,0.1265061]
[1721185800490,0.15438174,65643.0,65642.0,0.2788471]
[1721185800687,0.002,65644.0,65643.0,0.152339]
[1721185800890,0.15438174,65644.0,65643.0,0.299439]
[1721185801107,0.152323,65650.0,65644.0,0.152336]
[1721185801306,0.30670674,65649.0,65643.0,0.1471]
[1721185801473,0.30670674,65649.0,65643.0,0.299439]
[1721185801857,0.002,65644.0,65643.0,0.299439]
[1721185802230,0.002,65644.0,65643.0,1.03529868]
[1721185802428,0.002,65644.0,65643.0,1.33997668]
[1721185803189,0.008,65650.0,65649.0,0.602075]
[1721185803389,0.008,65650.0,65649.0,1.03321201]
[1721185804045,0.008,65650.0,65649.0,0.72856201]
[1721185804214,0.008,65650.0,65649.0,0.42391201]
[1721185804360,0.4758,65653.0,65649.0,0.27158701]
[1721185804557,0.15438174,65652.0,65650.0,0.12648701]
[1721185804765,0.15438174,65652.0,65651.0,0.12648701]
[1721185804958,0.61133574,65652.0,65651.0,0.12648701]
[1721185805763,0.30669974,65652.0,65651.0,0.12648701]
[1721185805971,0.15438174,65652.0,65651.0,0.12648701]
[1721185806177,0.15438174,65652.0,65651.0,0.27198701]
[1721185806397,0.15738174,65652.0,65651.0,0.27198965]
[1721185806578,0.15738174,65652.0,65651.0,0.1455]
[1721185806816,0.16438174,65652.0,65651.0,0.27198969]
[1721185807393,0.15438174,65652.0,65651.0,0.27198969]
[1721185807591,0.15438174,65652.0,65651.0,0.12648969]
[1721185807935,0.152334,65645.0,65644.0,0.0787]
[1721185808171,0.30671574,65645.0,65644.0,0.12649638]
[1721185808583,0.15438174,65645.0,65644.0,0.12649638]
[1721185809561,0.15438174,65645.0,65644.0,0.12650346]
[1721185810524,0.15938174,65645.0,65644.0,0.12650346]
[1721185811165,0.16038174,65645.0,65644.0,0.12650346]
[1721185811914,1.83519174,65645.0,65644.0,0.12650346]
[1721185812039,0.0663,65641.0,65640.0,0.000501]
[1721185812240,1.05939874,65641.0,65640.0,0.000501]
[1721185812443,1.15939874,65641.0,65640.0,0.000501]
[1721185812651,1.25651436,65641.0,65640.0,0.000501]
[1721185812864,1.21112073,65641.0,65640.0,0.000501]
[1721185813028,1.82049473,65641.0,65640.0,0.000501]
[1721185813224,2.25695974,65641.0,65640.0,0.000501]
[1721185813460,2.33107165,65641.0,65640.0,0.000501]
[1721185814162,2.25695974,65641.0,65640.0,0.000501]
[1721185814940,1.99793602,65641.0,65640.0,0.000501]
[1721185815143,1.96127274,65641.0,65640.0,0.001501]
[1721185815676,2.04000283,65641.0,65640.0,0.001501]
[1721185815880,2.34468983,65641.0,65640.0,0.001501]
[1721185816048,2.43538578,65641.0,65640.0,0.001501]
[1721185816348,2.13969878,65641.0,65640.0,0.002501]
[1721185816659,2.44435081,65641.0,65640.0,0.002501]
[1721185817205,2.5080394,65641.0,65640.0,0.002501]
[1721185817427,2.35368983,65641.0,65640.0,0.002501]
[1721185818063,2.33568983,65641.0,65640.0,0.000501]
[1721185818257,2.40363373,65641.0,65640.0,0.000501]
[1721185818831,2.40363373,65641.0,65640.0,0.001501]
[1721185819046,2.40363058,65641.0,65640.0,0.001501]
[1721185819248,2.33568983,65641.0,65640.0,0.001501]
[1721185819448,2.4990394,65641.0,65640.0,0.001501]
[1721185819647,2.4490394,65641.0,65640.0,0.001501]
[1721185819870,2.1443524,65641.0,65640.0,0.001501]
[1721185820376,2.4490394,65641.0,65640.0,0.001501]
[1721185821811,2.18218983,65641.0,65640.0,0.001501]
[1721185823803,2.23218983,65641.0,65640.0,0.001501]
[1721185824416,1.88646,65634.0,65633.0,0.009207]
[1721185824645,2.46554174,65634.0,65633.0,0.009207]
[1721185824893,2.60938534,65634.0,65633.0,0.009207]
[1721185825280,2.52730502,65634.0,65633.0,0.009207]
[1721185825892,2.57730502,65634.0,65633.0,0.009207]
[1721185826225,2.57730502,65634.0,65633.0,0.010207]
[1721185826226,2.53630502,65634.0,65633.0,0.010207]
[1721185826991,1.96542174,65634.0,65633.0,0.010207]
[1721185827177,1.32990174,65634.0,65633.0,0.010207]
[1721185827378,0.16338174,65634.0,65633.0,0.155607]
[1721185827573,0.62046174,65634.0,65633.0,0.155607]
[1721185827832,0.92518174,65634.0,65633.0,0.155607]
[1721185828248,0.92518174,65634.0,65633.0,0.154607]
[1721185828249,0.91618174,65634.0,65633.0,0.154607]
[1721185828699,0.16838174,65634.0,65633.0,0.154607]
[1721185829041,0.15438174,65634.0,65633.0,0.154607]
[1721185831067,0.16638174,65634.0,65633.0,0.154607]
[1721185831272,0.15438174,65634.0,65633.0,0.16048511]
[1721185831776,0.15738174,65634.0,65633.0,0.16048511]
[1721185832601,0.30974174,65634.0,65633.0,0.16048511]
[1721185832807,0.30974174,65634.0,65633.0,0.154607]
[1721185833006,0.30974174,65634.0,65633.0,0.16046524]
[1721185833007,0.61446174,65634.0,65633.0,0.16046524]
[1721185833255,0.91918174,65634.0,65633.0,0.16046524]
[1721185833435,0.91918174,65634.0,65633.0,0.154607]
[1721185834003,0.91618174,65634.0,65633.0,0.154607]
[1721185834405,0.91918174,65634.0,65633.0,0.154607]
[1721185834517,0.91918174,65634.0,65633.0,0.009207]
[1721185835243,1.22390174,65634.0,65633.0,0.009207]
[1721185835826,1.52862174,65634.0,65633.0,0.009207]
[1721185836078,1.58992174,65634.0,65633.0,0.009207]
[1721185836277,1.61292174,65634.0,65633.0,0.009207]
[1721185837628,1.60992174,65634.0,65633.0,0.009207]
[1721185838036,1.62392174,65634.0,65633.0,0.009207]
[1721185841282,1.72392174,65634.0,65633.0,0.009207]
[1721185841684,2.07864174,65634.0,65633.0,0.009207]
[1721185841887,2.10736525,65634.0,65633.0,0.009207]
[1721185842309,2.19036525,65634.0,65633.0,0.009207]
[1721185843047,2.14036525,65634.0,65633.0,0.009207]
[1721185843629,2.19036525,65634.0,65633.0,0.009207]
[1721185843905,2.14036525,65634.0,65633.0,0.009207]
[1721185844274,2.19036525,65634.0,65633.0,0.009207]
[1721185844474,2.14036525,65634.0,65633.0,0.009207]
[1721185845062,2.34471482,65634.0,65633.0,0.009207]
[1721185845260,2.19036525,65634.0,65633.0,0.009207]
[1721185845661,2.14036525,65634.0,65633.0,0.009207]
[1721185845873,2.19036525,65634.0,65633.0,0.009207]
[1721185846328,2.14036525,65634.0,65633.0,0.009207]
[1721185846675,2.19036525,65634.0,65633.0,0.009207]
[1721185847660,2.14036525,65634.0,65633.0,0.009207]
[1721185847831,2.19036525,65634.0,65633.0,0.009207]
[1721185852289,2.23565041,65634.0,65633.0,0.009207]
[1721185853104,2.19036525,65634.0,65633.0,0.009207]
[1721185854234,2.41273882,65634.0,65633.0,0.009207]
[1721185855298,2.34471482,65634.0,65633.0,0.009207]
[1721185856244,2.43541348,65634.0,65633.0,0.009207]
[1721185856907,2.34471482,65634.0,65633.0,0.009207]
[1721185857097,2.2811398,65634.0,65633.0,0.009207]
[1721185857309,2.30387613,65634.0,65633.0,0.009207]
[1721185859074,2.19257613,65634.0,65633.0,0.009207]
[1721185859837,2.24257613,65634.0,65633.0,0.009207]
[1721185860070,2.12906525,65634.0,65633.0,0.009207]
[1721185860278,2.24257525,65634.0,65633.0,0.009207]
[1721185860840,2.12906525,65634.0,65633.0,0.009207]
[1721185861041,2.24257525,65634.0,65633.0,0.009207]
[1721185861906,2.39692482,65634.0,65633.0,0.009207]
[1721185862109,2.24257525,65634.0,65633.0,0.009207]
[1721185862758,2.24256853,65634.0,65633.0,0.009207]
[1721185863163,2.12906525,65634.0,65633.0,0.009207]
[1721185865285,1.99606525,65634.0,65633.0,0.009207]
[1721185865501,2.66563482,65634.0,65633.0,1e-06]
[1721185865687,1.726059,65630.0,65629.0,0.009207]
[1721185865901,0.586314,65629.0,65628.0,0.0231941]
[1721185866110,1.19716225,65629.0,65628.0,0.0231941]
[1721185866271,2.57048382,65629.0,65628.0,0.0231941]
[1721185866736,2.63708382,65629.0,65628.0,0.0231941]
[1721185867491,2.65108382,65629.0,65628.0,0.0231941]
[1721185873959,2.65108382,65629.0,65612.0,0.0649]
[1721185873960,1.371991,65598.0,65597.0,0.00288097]
[1721185874087,1.62121451,65598.0,65597.0,0.00011]
[1721185874290,1.46162046,65598.0,65597.0,0.00011]
[1721185874569,1.77121451,65598.0,65597.0,0.00011]
[1721185874782,1.83947839,65598.0,65597.0,0.00011]
[1721185874983,1.78947839,65598.0,65597.0,0.00011]
[1721185875223,1.676955,65595.0,65594.0,0.0010089]
[1721185875421,1.72306093,65595.0,65594.0,0.0010089]
[1721185875732,1.7003944,65595.0,65594.0,0.0010089]
[1721185875958,2.0282954,65595.0,65594.0,0.0010089]
[1721185876504,1.67815925,65595.0,65594.0,0.0010089]
[1721185876825,1.69215925,65595.0,65594.0,0.0010089]
[1721185877256,1.38725825,65595.0,65594.0,0.00991049]
[1721185877479,1.36425825,65595.0,65594.0,0.0656089]
[1721185877687,1.33553474,65595.0,65594.0,0.0656089]
[1721185879735,1.64043574,65595.0,65594.0,0.0656089]
[1721185879856,1.62643574,65595.0,65594.0,0.0656089]
[1721185880055,1.64043574,65595.0,65594.0,0.0656089]
[1721185880487,1.62643574,65595.0,65594.0,0.0656089]
[1721185880810,1.64043574,65595.0,65594.0,0.0656089]
[1721185882278,0.62573274,65595.0,65594.0,0.1449089]
[1721185882481,0.16838174,65595.0,65594.0,0.1449089]
[1721185882694,0.16838174,65595.0,65594.0,0.15002644]
[1721185882695,0.62573274,65595.0,65594.0,0.15002644]
[1721185882884,0.62573274,65595.0,65594.0,0.16594978]
[1721185883129,0.62573274,65595.0,65594.0,0.16083224]
[1721185883481,0.61173274,65595.0,65594.0,0.16083224]
[1721185883773,0.62073274,65595.0,65594.0,0.16083224]
[1721185884177,0.61173274,65595.0,65594.0,0.16611195]
[1721185884588,0.16238174,65595.0,65594.0,0.16611195]
[1721185885938,0.16238174,65595.0,65594.0,0.15018861]
[1721185886748,0.15438174,65595.0,65594.0,0.15018861]
[1721185887124,0.16138174,65595.0,65594.0,0.15018861]
[1721185887534,0.007,65595.0,65594.0,0.91245061]
[1721185887733,0.007,65595.0,65594.0,0.60754561]
[1721185887910,0.007,65595.0,65594.0,0.70743095]
[1721185888269,0.007,65595.0,65594.0,0.40252595]
[1721185889606,0.15244,65600.0,65596.0,0.079]
[1721185889821,0.15438174,65599.0,65597.0,0.06797097]
[1721185889955,0.15438174,65599.0,65597.0,0.07325816]
[1721185890183,0.15438174,65599.0,65597.0,0.1443101]
[1721185890598,0.30682274,65599.0,65597.0,0.1443101]
[1721185890822,1.067104,65598.0,65597.0,0.07325816]
[1721185891039,1.32148574,65598.0,65597.0,0.00528719]
[1721185891245,1.32148574,65598.0,65594.0,0.0010089]
[1721185891246,1.067153,65595.0,65594.0,0.0010089]
[1721185891477,1.32153474,65595.0,65594.0,0.0010089]
[1721185891683,1.72703574,65595.0,65594.0,0.0010089]
[1721185891881,1.64943574,65595.0,65594.0,0.0010089]
[1721185894138,1.66343574,65595.0,65594.0,0.0010089]
[1721185894535,1.64943574,65595.0,65594.0,0.0010089]
[1721185894703,1.64943574,65595.0,65594.0,0.0019329]
[1721185894909,1.66343574,65595.0,65594.0,0.0019329]
[1721185895602,1.71343574,65595.0,65594.0,0.0019329]
[1721185895805,1.66343574,65595.0,65594.0,0.0019329]
[1721185896222,1.69943574,65595.0,65594.0,0.0019329]
[1721185896450,1.91778531,65595.0,65594.0,0.0019329]
[1721185896677,1.93178531,65595.0,65594.0,0.0019329]
[1721185896841,2.34701011,65595.0,65594.0,0.0019329]
[1721185897015,2.34701011,65595.0,65590.0,0.009207]
[1721185897016,1.372135,65591.0,65590.0,0.009207]
[1721185897227,1.87001674,65591.0,65590.0,0.009207]
[1721185897405,1.92001674,65591.0,65590.0,0.009207]
[1721185897608,1.87001674,65591.0,65590.0,0.009207]
[1721185897812,1.92001674,65591.0,65590.0,0.009207]
[1721185898115,1.87001674,65591.0,65590.0,0.009207]
[1721185898318,1.372284,65584.0,65583.0,0.05]
[1721185898524,1.87016574,65584.0,65583.0,0.05]
[1721185898962,2.37131774,65584.0,65583.0,0.05]
[1721185899180,1.372324,65582.0,65574.0,0.009207]
[1721185899512,2.13601631,65582.0,65574.0,0.009207]
[1721185899715,1.372473,65575.0,65574.0,0.009207]
[1721185899894,1.87035474,65575.0,65574.0,0.009207]
[1721185902070,1.87035474,65575.0,65574.0,0.155207]
[1721185902071,1.54236074,65575.0,65574.0,0.155207]
[1721185902199,1.54236074,65575.0,65574.0,0.1819377]
[1721185902200,1.32186074,65575.0,65574.0,0.1819377]
[1721185902403,1.32186074,65575.0,65574.0,0.155207]
[1721185902607,1.54236074,65575.0,65574.0,0.155207]
[1721185903708,1.84735474,65575.0,65574.0,0.074007]
[1721185903905,1.84735474,65575.0,65574.0,0.009207]
[1721185904417,1.87035474,65575.0,65574.0,0.009207]
[1721185904547,1.88435474,65575.0,65574.0,0.009207]
[1721185904954,1.87035474,65575.0,65574.0,0.009207]
[1721185905162,1.54236074,65575.0,65574.0,0.009207]
[1721185906610,0.91686674,65575.0,65574.0,0.149007]
[1721185906937,0.93086674,65575.0,65574.0,0.149007]
[1721185907136,0.93086674,65575.0,65574.0,0.1751177]
[1721185907429,0.93086674,65575.0,65574.0,0.149007]
[1721185907430,0.94486674,65575.0,65574.0,0.149007]
[1721185907617,0.61187274,65575.0,65574.0,0.149007]
[1721185907830,0.91686674,65575.0,65574.0,0.149007]
[1721185908037,0.93086674,65575.0,65574.0,0.149007]
[1721185908402,1.15136674,65575.0,65574.0,0.149007]
[1721185908798,1.15136674,65575.0,65574.0,0.069407]
[1721185909214,1.15136674,65575.0,65574.0,0.009207]
[1721185910712,1.15136674,65575.0,65574.0,0.073007]
[1721185910913,0.62587274,65575.0,65574.0,0.18771287]
[1721185911119,0.16838174,65575.0,65574.0,0.18771287]
[1721185911830,0.16838174,65575.0,65574.0,0.64520987]
[1721185911831,0.014,65575.0,65574.0,0.64520987]
[1721185912032,0.014,65575.0,65574.0,0.77184821]
[1721185912615,0.014,65575.0,65574.0,0.64520987]
[1721185912813,0.014,65575.0,65574.0,0.31434649]
[1721185913220,0.152486,65580.0,65576.0,0.00277097]
[1721185913425,0.15438174,65579.0,65578.0,0.0602]
[1721185913624,0.152474,65585.0,65579.0,0.152487]
[1721185913911,0.304943,65587.0,65581.0,0.00277097]
[1721185913912,0.30685874,65584.0,65581.0,0.00277097]
[1721185914308,0.15438174,65584.0,65583.0,0.596735]
[1721185914510,0.15438174,65584.0,65583.0,0.14464149]
[1721185914731,0.15438174,65584.0,65583.0,0.21256742]
[1721185916083,0.61180974,65584.0,65583.0,0.14464149]
[1721185916283,0.91676174,65584.0,65583.0,0.14464149]
[1721185916489,0.91676174,65584.0,65583.0,0.1393]
[1721185916703,0.92076174,65584.0,65583.0,0.1393]
[1721185918133,0.93576174,65584.0,65583.0,0.1393]
[1721185918307,0.93576174,65584.0,65583.0,0.15323]
[1721185919807,0.93576174,65584.0,65574.0,0.03812867]
[1721185919808,0.152491,65578.0,65575.0,0.0615]
[1721185919983,0.15438174,65577.0,65576.0,0.13476342]
[1721185920339,0.15438174,65577.0,65576.0,0.13199245]
[1721185920544,0.15438174,65577.0,65576.0,0.27729245]
[1721185920837,0.152481,65582.0,65578.0,0.082]
[1721185921008,0.15438174,65581.0,65579.0,0.2671695]
[1721185921179,0.30686474,65581.0,65579.0,0.1433077]
[1721185921578,0.152485,65580.0,65579.0,0.07262451]
[1721185921788,0.30494,65587.0,65579.0,0.06985354]
[1721185921985,0.152476,65584.0,65581.0,0.065]
[1721185922230,0.15438174,65583.0,65582.0,0.00811866]
[1721185922435,0.15438174,65583.0,65582.0,0.00534769]
[1721185922632,0.15438174,65583.0,65582.0,0.06603916]
[1721185923700,0.15438174,65583.0,65582.0,0.00534769]
[1721185923924,0.61181674,65583.0,65582.0,0.00534769]
[1721185924392,0.61181674,65583.0,65581.0,0.065]
[1721185924393,0.457441,65582.0,65581.0,0.065]
[1721185924645,0.91678374,65582.0,65581.0,0.065]
[1721185925793,0.457476,65577.0,65576.0,0.0774]
[1721185926037,0.61185774,65577.0,65576.0,0.0774]
[1721185926261,0.61185774,65577.0,65574.0,0.0353577]
[1721185926262,0.762485,65575.0,65574.0,0.009207]
[1721185926513,0.91686674,65575.0,65574.0,0.009207]
[1721185926715,1.22186074,65575.0,65574.0,0.075607]
[1721185926991,1.22186074,65575.0,65574.0,0.009207]
[1721185927677,1.22186074,65575.0,65574.0,0.0279777]
[1721185928184,0.002,65577.0,65574.0,0.1083777]
[1721185928185,0.154493,65577.0,65574.0,0.1083777]
[1721185928410,0.30687574,65576.0,65575.0,0.06599249]
[1721185928684,0.30687574,65576.0,65575.0,0.14810919]
[1721185928685,0.15438174,65576.0,65575.0,0.14810919]
[1721185929147,0.30687574,65576.0,65575.0,0.14810919]
[1721185929858,0.16138174,65576.0,65575.0,0.14810919]
[1721185930098,0.007,65576.0,65575.0,0.38100619]
[1721185930547,0.007,65576.0,65575.0,0.50763524]
[1721185930797,0.007,65576.0,65575.0,0.81262924]
[1721185931026,0.152479,65583.0,65578.0,0.08317097]
[1721185931258,0.30686374,65582.0,65580.0,0.00277097]
[1721185931486,0.762415,65581.0,65580.0,0.00277097]
[1721185931739,0.152497,65575.0,65574.0,0.0931777]
[1721185931978,0.61187274,65575.0,65574.0,0.0931777]
[1721185932209,0.30687874,65575.0,65574.0,0.0931777]
[1721185932434,0.61187274,65575.0,65574.0,0.0931777]
[1721185932660,0.61187274,65575.0,65574.0,0.074407]
[1721185932661,0.91686674,65575.0,65574.0,0.074407]
[1721185933333,0.76436974,65575.0,65574.0,0.074407]
[1721185933783,0.91686674,65575.0,65574.0,0.074407]
[1721185934228,0.92186674,65575.0,65574.0,0.074407]
[1721185934453,0.91686674,65575.0,65574.0,0.10333864]
[1721185934899,0.92286674,65575.0,65574.0,0.009207]
[1721185935149,1.22786074,65575.0,65574.0,0.009207]
[1721185935415,1.55585474,65575.0,65574.0,0.009207]
[1721185936188,1.57492512,65575.0,65574.0,0.009207]
[1721185936438,1.53285474,65575.0,65574.0,0.009207]
[1721185936673,1.57492461,65575.0,65574.0,0.009207]
[1721185936908,1.57492461,65575.0,65574.0,0.0213377]
[1721185936909,1.5750104,65575.0,65574.0,0.0213377]
[1721185938027,1.5750104,65575.0,65574.0,0.009207]
[1721185938605,1.57502694,65575.0,65574.0,0.009207]
[1721185938842,1.71582694,65575.0,65574.0,0.009207]
[1721185939328,1.78397465,65575.0,65574.0,0.009207]
[1721185939562,1.93524048,65575.0,65574.0,0.009207]
[1721185939786,1.86751394,65575.0,65574.0,0.009207]
[1721185940461,1.92922834,65575.0,65574.0,0.009207]
[1721185940718,1.94322834,65575.0,65574.0,0.009207]
[1721185940960,1.92922834,65575.0,65574.0,0.009207]
[1721185941451,1.87551394,65575.0,65574.0,0.009207]
[1721185941681,1.86151394,65575.0,65574.0,0.009207]